Workbook

Sheet Business & other details
V1: =INDEX(dms_Worksheet_List,MATCH(dms_MODEL,dms_Model_List)) -> REGULATORY REPORTING STATEMENT
V2: =INDEX(dms_TradingNameFull_List,MATCH(dms_TradingName,dms_TradingName_List)) -> Jemena Electricity
V3: REGULATORY PERIOD FROM 2026-27 TO 2030-31
V4: BUSINESS & OTHER DETAILS
V6: INSTRUCTIONS
V7: Complete the following business details regulatory template before entering data or values in any other regulatory template. This regulatory template is linked to other cells within the spreadsheet and automatically generates column headings and conditional formatting to distinguish business specific input and non-input cells.
Q9: SUBMISSION PARTICULARS INPUT SHEET
Q11: DRAFT TEMPLATE ONLY
Q12: DO NOT USE FOR SUBMISSIONS
V15: ENTITY DETAILS
V17: Business Name
V19: Short name | AL19: Jemena Electricity
V20: ACN/ABN | AL20: =INDEX(dms_ABN_List,MATCH(dms_TradingName,dms_TradingName_List)) -> 82064651083
V21: UID | AL21: =INDEX(dms_UID_List,MATCH(dms_TradingName,dms_TradingName_List)) -> EDDVIC300
V24: Business Address | BQ24: Postal Address
V26: Address 1 | BI26: Address 1
V27: Address 2 | BI27: Address 2
V28: Suburb | BI28: Suburb
V29: State | AL29: =INDEX(dms_State_List,MATCH(dms_TradingName,dms_TradingName_List)) -> Vic | AV29: Post code | BI29: State | BQ29: =INDEX(dms_PState_List,MATCH(dms_TradingName,dms_TradingName_List)) -> Vic | CA29: Post code
BA31: `
V33: Contact Names
V35: Name | BI35: Name
V36: Phone | BI36: Phone
V37: Email | BI37: Email
Q42: REGULATORY CONTROL PERIODS
Z45: Forthcoming period | AL45: 2026-27 | AU45: 2027-28 | BD45: 2028-29 | BM45: 2029-30 | BV45: 2030-31
X49: RESETS | Z49: Current period | AL49: 2021-22 | AU49: 2022-23 | BD49: 2023-24 | BM49: 2024-25 | BV49: 2025-26
Z53: Previous period | AL53: 2016-17 | AU53: 2017-18 | BD53: 2018-19 | BM53: 2019-20 | BV53: 2020-21
AL55: =PRCP_y11 ->  | AU55: =PRCP_y12 ->  | BD55: =PRCP_y13 ->  | BM55: =PRCP_y14 ->  | BV55: =PRCP_y15 -> 
Z57: Commencing year | AL57: 2023-24
X58: ANNUAL RINS
Z59: Final year | AL59: 2029-30
Q63: SUBMISSION DETAILS
Z65: RIN type | AL65: =INDIRECT(dms_MODEL) -> Regulatory Reporting (Reset)
Z67: Source | AL67: Regulatory proposal
X69: THIS FILE | Z69: Data Quality | AL69: Consolidated
Z71: Confidentiality Status | AL71: Public
Z73: Amended RIN Amendment Reason
Z77: Submission Date | AL77: dd/mm/yy | BD77: Please enter date this file submitted to AER

Sheet 7.5 EBSS
B1: =INDEX(dms_Worksheet_List,MATCH(dms_MODEL,dms_Model_List)) -> REGULATORY REPORTING STATEMENT
B2: =_xlfn.SINGLE(INDEX(dms_TradingNameFull_List,MATCH(_xlfn.SINGLE(dms_TradingName),dms_TradingName_List))) -> Jemena Electricity
B3: ='Business & other details'!V3 -> REGULATORY PERIOD FROM 2026-27 TO 2030-31
B4: 7.5 EBSS
B6: Instructions
B7: =CONCATENATE(_xlfn.SINGLE(dms_TradingName), " is required to populate all input cells (yellow) in this worksheet.") -> Jemena Electricity is required to populate all input cells (yellow) in this worksheet.
B8: Efficiency gains are calculated using the formulae outlined on page 6 and 7 of version 2 of the AER's Efficiency benefit sharing scheme. All terms and definitions are as set out in the AER's Efficiency benefit sharing scheme.
B12: Actual and estimated inflation
C13: Actual | M13: Estimated
C14: 2015 | D14: 2016 | E14: 2017 | F14: 2018 | G14: 2019 | H14: 2020 | I14: HY2021 | J14: 2021-22 | K14: 2022-23 | L14: 2023-24 | M14: 2024-25 | N14: 2025-26
B15: ABS CPI index - December/June | C15: 108.4 | D15: 110 | E15: 112.1 | F15: 114.1 | G15: 116.2 | H15: 117.2 | I15: 118.8 | J15: 126.1 | K15: 133.7 | L15: 138.8 | M15: 142.27 | N15: 146.68037
B16: Inflation rate (per cent) | D16: =+D15/C15-1 -> 0.0147601476 | E16: 0.01909090909 | F16: 0.0178412132 | G16: 0.01840490798 | H16: 0.008605851979 | I16: 0.01365187713 | J16: 0.06144781145 | K16: 0.06026962728 | L16: 0.03814510097 | M16: 0.025 | N16: 0.031
B17: Reconstructed cumulative index (2025-26=1) | C17: =D17/(1+D16) -> 0.7390218609 | D17: 0.7499299327 | E17: 0.7642467769 | F17: 0.7778818665 | G17: 0.7921987107 | H17: 0.7990162555 | I17: 0.8099243273 | J17: 0.8596924046 | K17: 0.9115057455 | L17: 0.9462752241 | M17: 0.9699321048 | N17: 1
B21: 7.5.1 - The carryover amounts that arise from applying the EBSS during the current regulatory control period
B23: Base year used to forecast opex for the current period (drop down menu) | C23: 2018
B24: ="Non-recurrent efficiency adjustment made to "&dms_PRCP_BaseYear&" opex, "&"$m, real June 2021" -> Non-recurrent efficiency adjustment made to 2018 opex, $m, real June 2021
B25: 7.5.1.1 - Opex allowance applicable to EBSS (EBSS target)
C26: $m, real December 2015 | E26: $m, real Dec 2020 | F26: $m, real June 2021 | L26: $m, real June 2026
C27: Previous period | F27: Current regulatory control period | L27: Previous period | O27: Current regulatory control period
C28: =dms_PRCP_BaseYear -> 2018 | D28: 2020 | E28: HY2021 | F28: 2021-22 | G28: 2022-23 | H28: 2023-24 | I28: 2024-25 | J28: 2025-26 | L28: =dms_PRCP_BaseYear -> 2018 | M28: =D28 -> 2020 | N28: =E28 -> HY2021 | O28: 2021-22 | P28: 2022-23 | Q28: 2023-24 | R28: 2024-25 | S28: 2025-26
B29: Total opex allowance | C29: 89.71427832 | D29: 91.98333182 | E29: 56.59403065 | F29: 99.38623919 | G29: 101.3032965 | H29: 103.7786964 | I29: 107.2684381 | J29: 109.3667052 | L29: =+C29/$C$17 -> 121.3959736 | M29: =+D29/$C$17 -> 124.4663205 | N29: =+E29/$H$17 -> 70.82963614 | O29: =+F29/$I$17 -> 122.7105247 | P29: =+G29/$I$17 -> 125.0774833 | Q29: =+H29/$I$17 -> 128.133818 | R29: =+I29/$I$17 -> 132.4425436 | S29: =+J29/$I$17 -> 135.0332389
B30: Approved excludable costs - allowance
B31: Debt raising costs | C31: -0.7054675732 | D31: -0.7707404715 | E31: -0.3871244958 | F31: -0.7471696293 | G31: -0.7823577222 | H31: -0.8129929985 | I31: -0.8312064391 | J31: -0.8432219451 | L31: =+C31/$C$17 -> -0.9545963529 | M31: -1.042919719 | N31: =+E31/$H$17 -> -0.4845014016 | O31: =F31/$I$17 -> -0.9225178256 | P31: -0.9659639744 | Q31: -1.003788837 | R31: -1.026276667 | S31: -1.041112011
B32: DMIA | L32: 0 | M32: 0 | N32: =+E32/$H$17 -> 0 | O32: 0 | P32: 0 | Q32: 0 | R32: 0 | S32: 0
B33: GSL payments | C33: 0 | D33: 0 | E33: -0.06769631509 | F33: -0.2296382586 | G33: -0.2312754374 | H33: -0.2312754374 | I33: -0.2312754374 | J33: -0.2312754374 | L33: 0 | M33: 0 | N33: =+E33/$H$17 -> -0.08472457804 | O33: -0.2835305112 | P33: -0.2855519085 | Q33: -0.2855519085 | R33: -0.2855519085 | S33: -0.2855519085
B34: Approved opex, pass throughs and contingent projects | L34: 0 | M34: 0 | N34: =+E34/$H$17 -> 0 | O34: 0 | P34: 0 | Q34: 0 | R34: 0 | S34: 0
B35: Other adjustments or exclusions required by the EBSS | L35: 0 | M35: 0 | N35: =+E35/$H$17 -> 0 | O35: 0 | P35: 0 | Q35: 0 | R35: 0 | S35: 0
B36: Forecast opex for EBSS purposes | C36: =SUM(C29:C35) -> 89.00881075 | D36: 91.21259135 | E36: 56.13920984 | F36: 98.4094313 | G36: 100.2896633 | H36: 102.7344279 | I36: 106.2059562 | J36: 108.2922078 | L36: =+SUM(L29:L35) -> 120.4413772 | M36: =+SUM(M29:M35) -> 123.4234008 | N36: =+SUM(N29:N35) -> 70.26041016 | O36: 121.5044764 | P36: 123.8259674 | Q36: 126.8444773 | R36: 131.1307151 | S36: 133.706575
B38: 7.5.1.2 - Actual and estimated opex applicable to EBSS
C39: $m, nominal | L39: $m, real June 2026
C40: Previous period | F40: Current regulatory control period | L40: Previous period | O40: Current regulatory control period
C41: =dms_PRCP_BaseYear -> 2018 | D41: 2020 | E41: HY2021 | F41: 2021-22 | G41: 2022-23 | H41: 2023-24 | I41: 2024-25 | J41: 2025-26 | L41: =dms_PRCP_BaseYear -> 2018 | M41: =D41 -> 2020 | N41: =E41 -> HY2021 | O41: 2021-22 | P41: 2022-23 | Q41: 2023-24 | R41: 2024-25 | S41: 2025-26
B42: Total opex | C42: 81.82038237 | D42: 75.82166993 | E42: 35.4146286 | F42: 76.47957466 | G42: 84.78270561 | H42: 90.19558306 | I42: 91.75364979 | L42: =+C42/LOOKUP(dms_PRCP_BaseYear,$D$14:$N$14,$D$17:$N$17)*(1+LOOKUP(dms_PRCP_BaseYear,$D$14:$N$14,$D$16:$N$16))^0.5 -> 106.1177109 | M42: =+D42/H$17*(1+H$16)^0.5 -> 95.30122261 | N42: =+E42/I$17*(1+I$16)^0.5 -> 44.02330689 | O42: 91.65405778 | P42: 95.77585147 | Q42: 97.11735156 | R42: 95.77318859
B43: Approved excludable costs
B44: =IF(ISBLANK(B31),"",B31) -> Debt raising costs | L44: =+C44/LOOKUP(dms_PRCP_BaseYear,$D$14:$N$14,$D$17:$N$17)*(1+LOOKUP(dms_PRCP_BaseYear,$D$14:$N$14,$D$16:$N$16))^0.5 -> 0 | M44: =+D44/H$17*(1+H$16)^0.5 -> 0 | N44: =+E44/I$17*(1+I$16)^0.5 -> 0 | O44: =F44/J$17*(1+J$16)^0.5 -> 0 | P44: 0 | Q44: 0 | R44: 0
B45: =IF(ISBLANK(B32),"",B32) -> DMIA | C45: -0.239279 | D45: -0.067856 | E45: -0.02332 | F45: -0.240105 | G45: -0.165408 | H45: -0.15246039 | I45: -0.03183834 | L45: -0.3103351391 | M45: -0.08528907063 | N45: -0.02898868511 | O45: -0.287744769 | P45: -0.186855231 | Q45: -0.1641604699 | R45: -0.03323311223
B46: =IF(ISBLANK(B33),"",B33) -> GSL payments | C46: -0.15711 | D46: -0.120855 | E46: -0.072255 | F46: -0.66125 | G46: -0.03664 | H46: -0.090065 | I46: -0.090065 | L46: -0.2037652853 | M46: -0.1519041887 | N46: -0.08981892978 | O46: -0.7924500885 | P46: -0.04139083758 | Q46: -0.09697674733 | R46: -0.09401056252
B47: Capitalised opex that has been excluded from the regulatory asset base | L47: 0 | M47: 0 | N47: 0 | O47: 0 | P47: 0 | Q47: 0 | R47: 0
B48: Movements in provisions related to opex | C48: -0.48004488 | D48: -0.04105733 | E48: 0.31715384 | F48: -1.02851415 | G48: -0.91035625 | H48: -0.12817913 | I48: -0.48 | L48: -0.6225987011 | M48: -0.05160548099 | N48: 0.3942484047 | O48: -1.232583938 | P48: -1.028395406 | Q48: -0.138015823 | R48: -0.5010278134
B49: Other adjustments or exclusions required by the EBSS | L49: 0 | M49: 0 | N49: 0 | O49: 0 | P49: 0 | Q49: 0 | R49: 0
B50: Actual opex for EBSS purposes | C50: =SUM(C42:C49) -> 80.94394849 | D50: 75.5919016 | E50: 35.63620744 | F50: 74.54970551 | G50: 83.67030136 | H50: 89.82487854 | I50: 91.15174645 | L50: =L42+SUM(L44:L49) -> 104.9810118 | M50: 95.01242387 | N50: 44.29874768 | O50: 89.34127898 | P50: 94.51921 | Q50: 96.71819852 | R50: 95.1449171 | S50: =S36-(LOOKUP($T$50,O28:R28,O36:R36)-LOOKUP($T$50,O41:R41,O50:R50))+T51 -> 97.72077701 | T50: 2024-25 | U50: =CONCATENATE(dms_TradingName," to nominate base year used to forecast opex (drop down menu)") -> Jemena Electricity to nominate base year used to forecast opex (drop down menu)
T51: 0 | U51: ="Base year non-recurrent efficiency gain "&(CONCATENATE("$m, real June 2026 ")) -> Base year non-recurrent efficiency gain $m, real June 2026
L52: Incremental gain $m, real June 2026
M53: =(M36-M50)-(L36-L50)+C24/$I$17 -> 12.95061144 | N53: =(N36-N50)-(M36-M50)/2 -> 11.75617401 | O53: =(O36-O50)-(2*(N36-N50)-(L36-L50))-C24/$I$17 -> -4.299762063 | P53: =(P36-P50)-(O36-O50) -> -2.856440003 | Q53: =(Q36-Q50)-(P36-P50) -> 0.8195213452 | R53: =(R36-R50)-(Q36-Q50) -> 5.859519214 | S53: =(S36-S50)-(R36-R50) -> 0
L55: Carryover
O56: Current regulatory control period | T56: Forthcoming regulatory control period
O57: $m, real June 2026
O58: 2021-22 | P58: 2022-23 | Q58: 2023-24 | R58: 2024-25 | S58: 2025-26 | T58: =_xlfn.SINGLE(FRCP_y1) -> 2026-27 | U58: 2027-28 | V58: 2028-29 | W58: 2029-30 | X58: 2030-31 | Y58: Total
L59: 2020 true-up | S59: =-M53/2 -> -6.475305722
L60: HY2021 true-up | T60: =N53 -> 11.75617401
L61: 2021-22 | P61: =$O$53 -> -4.299762063 | Q61: =$O$53 -> -4.299762063 | R61: =$O$53 -> -4.299762063 | S61: =$O$53 -> -4.299762063 | T61: =$O$53 -> -4.299762063
L62: 2022-23 | Q62: =$P$53 -> -2.856440003 | R62: =$P$53 -> -2.856440003 | S62: =$P$53 -> -2.856440003 | T62: =$P$53 -> -2.856440003 | U62: =$P$53 -> -2.856440003
L63: 2023-24 | R63: =$Q$53 -> 0.8195213452 | S63: =$Q$53 -> 0.8195213452 | T63: =$Q$53 -> 0.8195213452 | U63: =$Q$53 -> 0.8195213452 | V63: =$Q$53 -> 0.8195213452
L64: 2024-25 | S64: =$R$53 -> 5.859519214 | T64: =$R$53 -> 5.859519214 | U64: =$R$53 -> 5.859519214 | V64: =$R$53 -> 5.859519214 | W64: =$R$53 -> 5.859519214
L65: 2025-26 | T65: =+$S$53 -> 0 | U65: =+$S$53 -> 0 | V65: =+$S$53 -> 0 | W65: =+$S$53 -> 0 | X65: =+$S$53 -> 0
L66: Total Carryover Amount ($m, June 2026) | S66: =S59 -> -6.475305722 | T66: =+SUM(T60:T65) -> 11.27901251 | U66: =+SUM(U62:U65) -> 3.822600556 | V66: =+SUM(V63:V65) -> 6.679040559 | W66: =+SUM(W64:W65) -> 5.859519214 | X66: =+SUM(X65) -> 0 | Y66: =+SUM(T66:X66) -> 27.64017284
L68: WACC | S68: 0.02867184166 | T68: 0.03336011191
L70: PTRM inputs ($m, June 2026) | T70: =T66+S66*(1+S68)^(6/12)*(1+T68)^(6/12) -> 4.602886108 | U70: =U66 -> 3.822600556 | V70: =V66 -> 6.679040559 | W70: =W66 -> 5.859519214 | X70: =X66 -> 0 | Y70: =+SUM(T70:X70) -> 20.96404644
B72: 7.5.2 - Proposed forecast opex for the EBSS for the forthcoming regulatory control period
C73: Current period | E73: Forthcoming regulatory control period
C74: $m, real June 2026
C75: 2024-25 | D75: 2025-26 | E75: 2026-27 | F75: 2027-28 | G75: 2028-29 | H75: 2029-30 | I75: 2030-31
B76: Forecast opex | C76: =+I29/$I$17 -> 132.4425436 | D76: =+J29/$I$17 -> 135.0332389 | E76: 110.6254028 | F76: 118.3551688 | G76: 124.1029826 | H76: 129.0110305 | I76: 133.0882771
B77: Less excluded costs
B78: Debt raising costs | C78: =-I31/$I$17 -> 1.026276667 | D78: =-J31/$I$17 -> 1.041112011 | E78: 1.13097789 | F78: 1.249158947 | G78: 1.355692035 | H78: 1.431265597 | I78: 1.497901149
B79: Innovation fund | E79: 0.84542 | F79: 0.84542 | G79: 0.84542 | H79: 0.84542 | I79: 0.84542
B80: Guaranteed Service Level payments | C80: =-I33/$I$17 -> 0.2855519085 | D80: =-J33/$I$17 -> 0.2855519085 | E80: 0.256207059 | F80: 0.256207059 | G80: 0.256207059 | H80: 0.256207059 | I80: 0.256207059
B82: Adjusted forecast opex ($m, 2025-26) | C82: =+C76-SUM(C78:C81) -> 131.1307151 | D82: 133.706575 | E82: 108.3927978 | F82: 116.0043828 | G82: 121.6456635 | H82: 126.4781378 | I82: 130.4887489

Sheet AER lookups (hidden)
B1: AER LOOKUP TABLES
B3: Template number | C3: 5
Z5: FOR ELECTRICITY BUSINESSES ONLY
Z6: Feeder Types | AD6: TasNetworks (D) | AE6: Feeder Names
Z8: CBD | AA8: Urban | AB8: Short rural | AC8: long rural | AD8: EXTRA
B9: dms_TradingName_List | C9: dms_TradingNameFull_List | D9: dms_ABN_List | E9: dms_UID_List | F9: dms_JurisdictionList | G9: dms_Sector_List | H9: dms_Segment_List | I9: dms_FormControl_List | J9: dms_RPT_List | K9: dms_RPTMonth_List | L9: dms_CRCPlength_List | M9: dms_FRCPlength_List | N9: dms_PRCPlength_List | O9: dms_663_List | P9: dms_Addr1_List | Q9: dms_Addr2_List | R9: dms_Suburb_List | S9: dms_State_List | T9: dms_PostCode_List | U9: dms_PAddr1_List | V9: dms_PAddr2_List | W9: dms_PSuburb_List | X9: dms_PState_List | Y9: dms_PPostCode_List | Z9: dms_CBD_flag | AA9: dms_Urban_flag | AB9: dms_ShortRural_flag | AC9: dms_LongRural_flag | AD9: dms_FeederType_5_flag | AE9: dms_FeederName_1 | AF9: dms_FeederName_2 | AG9: dms_FeederName_3 | AH9: dms_FeederName_4 | AI9: dms_FeederName_5 | AJ9: dms_MAIFI_flag_List | AK9: dms_Public_Lighting_List | AL9: Name
B10: AusNet (D) | C10: AusNet Electricity Services Pty Ltd | D10: 91064651118 | E10: EDDVIC100 | F10: Vic | G10: Electricity | H10: Distribution | I10: Revenue cap | J10: Financial | K10: June | L10: 5 | M10: 5 | N10: 5 | O10: 2 | P10: Level 32 | Q10: 2 Southbank Boulevard | R10: SOUTHBANK | S10: Vic | T10: 3006 | U10: Locked Bag 14051 | W10: MELBOURNE CITY MAIL CENTRE | X10: Vic | Y10: 8001 | Z10: NO | AA10: YES | AB10: YES | AC10: YES | AD10: NO | AE10: CBD | AF10: Urban | AG10: Short rural | AH10: Long rural | AJ10: YES | AK10: YES | AL10: =B10 -> AusNet (D)
B11: Australian Distribution Co. (Vic) | C11: Australian Distribution Co. (Victoria) | D11: 11222333444 | E11: UID_123 | F11: Vic | G11: Electricity | H11: Distribution | I11: Revenue cap | J11: Financial | K11: June | L11: 5 | M11: 5 | N11: 5 | O11: 2 | P11: 123 Straight Street | R11: MELBOURNE | S11: Vic | T11: 3000 | U11: PO Box 123 | W11: MELBOURNE | X11: Vic | Y11: 3000 | Z11: NO | AA11: NO | AB11: NO | AC11: NO | AD11: NO | AE11: CBD | AF11: Urban | AG11: Short rural | AH11: Long rural | AJ11: YES | AK11: YES | AL11: Australian Distribution Co. (Vic)
B12: CitiPower | C12: CitiPower | D12: 76064651056 | E12: EDDVIC200 | F12: Vic | G12: Electricity | H12: Distribution | I12: Revenue cap | J12: Financial | K12: June | L12: 5 | M12: 5 | N12: 5 | O12: 2 | P12: 40 Market Street | R12: MELBOURNE | S12: Vic | T12: 3000 | U12: Locked Bag 14090 | W12: MELBOURNE | X12: Vic | Y12: 8001 | Z12: YES | AA12: YES | AB12: NO | AC12: NO | AD12: NO | AE12: CBD | AF12: Urban | AG12: Short rural | AH12: Long rural | AJ12: YES | AK12: YES | AL12: CitiPower
B13: Jemena Electricity | C13: Jemena Electricity | D13: 82064651083 | E13: EDDVIC300 | F13: Vic | G13: Electricity | H13: Distribution | I13: Revenue cap | J13: Financial | K13: June | L13: 5 | M13: 5 | N13: 5 | O13: 2 | P13: Level 16 | Q13: 567 Collins Street | R13: MELBOURNE | S13: Vic | T13: 3000 | U13: PO Box 16182 | W13: MELBOURNE | X13: Vic | Y13: 8001 | Z13: NO | AA13: YES | AB13: YES | AC13: NO | AD13: NO | AE13: CBD | AF13: Urban | AG13: Short rural | AH13: Long rural | AJ13: YES | AK13: YES | AL13: Jemena Electricity
B14: Powercor Australia | C14: Powercor Australia | D14: 89064651109 | E14: EDDVIC400 | F14: Vic | G14: Electricity | H14: Distribution | I14: Revenue cap | J14: Financial | K14: June | L14: 5 | M14: 5 | N14: 5 | O14: 2 | P14: 40 Market Street | R14: MELBOURNE | S14: Vic | T14: 3000 | U14: Locked bag 14090 | W14: MELBOURNE | X14: Vic | Y14: 8001 | Z14: NO | AA14: YES | AB14: YES | AC14: YES | AD14: NO | AE14: CBD | AF14: Urban | AG14: Short rural | AH14: Long rural | AJ14: YES | AK14: YES | AL14: Powercor Australia
B15: United Energy | C15: United Energy | D15: 70064651029 | E15: EDDVIC500 | F15: Vic | G15: Electricity | H15: Distribution | I15: Revenue cap | J15: Financial | K15: June | L15: 5 | M15: 5 | N15: 5 | O15: 2 | P15: 43-45 Centreway | R15: MOUNT WAVERLEY | S15: Vic | T15: 3149 | U15: PO Box 449 | W15: MOUNT WAVERLEY | X15: Vic | Y15: 3170 | Z15: NO | AA15: YES | AB15: YES | AC15: NO | AD15: NO | AE15: CBD | AF15: Urban | AG15: Short rural | AH15: Long rural | AJ15: YES | AK15: YES | AL15: United Energy
B18: The Reg Year Ending (dms_RYE) must be set to the last year of the regulatory period. For forecast data is is usually (FRCP_y5) for actual it is a single year (CRY). For historical actual data the RYE will need to be set manually in the business details sheet by setting the dms_Multiyear_flag to 1 and putting the correct value in 'dms_Specified_FinalYear. See cells C67:C68
B19: dms_Model_List | C19: dms_Model_Name_Format1 | D19: dms_Worksheet_List | E19: dms_Model_Span_List
B20: ARR | C20: Annual Reporting | D20: =IF(dms_MultiYear_ResponseFlag="yes","NEW HISTORICAL ANNUAL REPORTING","ANNUAL REPORTING") ->  | E20: 1
B21: CA | C21: Category Analysis | D21: =IF(dms_MultiYear_ResponseFlag="yes","NEW HISTORICAL CATEGORY ANALYSIS","CATEGORY ANALYSIS") ->  | E21: 1
B22: CESS | C22: Capitlal Expenditure | D22: CAPITLAL EXPENDITURE SHARING SCHEMING | E22: 5
B23: CPI | C23: CPI | D23: CPI | E23: 5
B24: EB | C24: Economic Benchmarking | D24: =IF(dms_MultiYear_ResponseFlag="yes","NEW HISTORICAL ECONOMIC BENCHMARKING","ECONOMIC BENCHMARKING") ->  | E24: 1
B25: EBSS | C25: Efficiency Benefit Sharing Scheme | D25: EFFICIENCY BENEFIT SHARING SCHEME | E25: 5
B26: Pricing | C26: Pricing Proposal | D26: PRICING PROPOSAL | E26: 5
B27: Profitability | C27: Profitability | D27: PROFITABILITY | E27: 5
B28: PTRM | C28: Post Tax Revenue Model | D28: POST TAX REVENUE MODEL | E28: 5
B29: Reset | C29: Regulatory Reporting (Reset) | D29: REGULATORY REPORTING STATEMENT | E29: 5
B30: Reset_outputs | C30: Reset Outputs | D30: AER RESET DECISION OUTPUTS | E30: 5
B31: RFM | C31: Roll Forward Model | D31: ROLL FORWARD MODEL | E31: 5
B32: WACC | C32: Weighted Average Cost of Capital | D32: WEIGHTED AVERAGE COST OF CAPITAL | E32: 1
B36: Financial | C36: Calendar | E36: PREVIOUS | G36: CURRENT | I36: FORTHCOMING
B37: 1987-88 | C37: 1988 | D37: PRCP_y1 | E37: =INDEX(INDIRECT(dms_RPT),dms_PRCP_start_row) ->  | F37: CRCP_y1 | G37: =INDEX(INDIRECT(dms_RPT),dms_CRCP_start_row) ->  | H37: =FRCP_y1 -> 2026-27 | I37: =INDEX(INDIRECT(dms_RPT),dms_FRCP_start_row) -> 
B38: 1988-89 | C38: 1989 | D38: PRCP_y2 | E38: =INDEX(INDIRECT(dms_RPT),dms_PRCP_start_row+1) ->  | F38: CRCP_y2 | G38: =INDEX(INDIRECT(dms_RPT),dms_CRCP_start_row+1) ->  | H38: FRCP_y2 | I38: =INDEX(INDIRECT(dms_RPT),dms_FRCP_start_row+1) -> 
B39: 1989-90 | C39: 1990 | D39: PRCP_y3 | E39: =INDEX(INDIRECT(dms_RPT),dms_PRCP_start_row+2) ->  | F39: CRCP_y3 | G39: =INDEX(INDIRECT(dms_RPT),dms_CRCP_start_row+2) ->  | H39: FRCP_y3 | I39: =INDEX(INDIRECT(dms_RPT),dms_FRCP_start_row+2) -> 
B40: 1990-91 | C40: 1991 | D40: PRCP_y4 | E40: =INDEX(INDIRECT(dms_RPT),dms_PRCP_start_row+3) ->  | F40: CRCP_y4 | G40: =INDEX(INDIRECT(dms_RPT),dms_CRCP_start_row+3) ->  | H40: FRCP_y4 | I40: =INDEX(INDIRECT(dms_RPT),dms_FRCP_start_row+3) -> 
B41: 1991-92 | C41: 1992 | D41: PRCP_y5 | E41: =INDEX(INDIRECT(dms_RPT),dms_PRCP_start_row+4) ->  | F41: CRCP_y5 | G41: =INDEX(INDIRECT(dms_RPT),dms_CRCP_start_row+4) ->  | H41: FRCP_y5 | I41: =INDEX(INDIRECT(dms_RPT),dms_FRCP_start_row+4) -> 
B42: 1992-93 | C42: 1993 | D42: PRCP_y6 | E42: =INDEX(INDIRECT(dms_RPT),dms_PRCP_start_row+5) ->  | F42: CRCP_y6 | G42: =INDEX(INDIRECT(dms_RPT),dms_CRCP_start_row+5) ->  | H42: FRCP_y6 | I42: =INDEX(INDIRECT(dms_RPT),dms_FRCP_start_row+5) -> 
B43: 1993-94 | C43: 1994 | D43: PRCP_y7 | E43: =INDEX(INDIRECT(dms_RPT),dms_PRCP_start_row+6) ->  | F43: CRCP_y7 | G43: =INDEX(INDIRECT(dms_RPT),dms_CRCP_start_row+6) ->  | H43: FRCP_y7 | I43: =INDEX(INDIRECT(dms_RPT),dms_FRCP_start_row+6) -> 
B44: 1994-95 | C44: 1995 | D44: PRCP_y8 | E44: =INDEX(INDIRECT(dms_RPT),dms_PRCP_start_row+7) ->  | F44: CRCP_y8 | G44: =INDEX(INDIRECT(dms_RPT),dms_CRCP_start_row+7) ->  | H44: FRCP_y8 | I44: =INDEX(INDIRECT(dms_RPT),dms_FRCP_start_row+7) -> 
B45: 1995-96 | C45: 1996 | D45: PRCP_y9 | E45: =INDEX(INDIRECT(dms_RPT),dms_PRCP_start_row+8) ->  | F45: CRCP_y9 | G45: =INDEX(INDIRECT(dms_RPT),dms_CRCP_start_row+8) ->  | H45: FRCP_y9 | I45: =INDEX(INDIRECT(dms_RPT),dms_FRCP_start_row+8) -> 
B46: 1996-97 | C46: 1997 | D46: PRCP_y10 | E46: =INDEX(INDIRECT(dms_RPT),dms_PRCP_start_row+9) ->  | F46: CRCP_y10 | G46: =INDEX(INDIRECT(dms_RPT),dms_CRCP_start_row+9) ->  | H46: FRCP_y10 | I46: =INDEX(INDIRECT(dms_RPT),dms_FRCP_start_row+9) -> 
B47: 1997-98 | C47: 1998 | D47: PRCP_y11 | E47: =INDEX(INDIRECT(dms_RPT),dms_PRCP_start_row+10) ->  | F47: CRCP_y11 | G47: =INDEX(INDIRECT(dms_RPT),dms_CRCP_start_row+10) ->  | H47: FRCP_y11 | I47: =INDEX(INDIRECT(dms_RPT),dms_FRCP_start_row+10) -> 
B48: 1998-99 | C48: 1999 | D48: PRCP_y12 | E48: =INDEX(INDIRECT(dms_RPT),dms_PRCP_start_row+11) ->  | F48: CRCP_y12 | G48: =INDEX(INDIRECT(dms_RPT),dms_CRCP_start_row+11) ->  | H48: FRCP_y12 | I48: =INDEX(INDIRECT(dms_RPT),dms_FRCP_start_row+11) -> 
B49: 1999-00 | C49: 2000 | D49: PRCP_y13 | E49: =INDEX(INDIRECT(dms_RPT),dms_PRCP_start_row+12) ->  | F49: CRCP_y13 | G49: =INDEX(INDIRECT(dms_RPT),dms_CRCP_start_row+12) ->  | H49: FRCP_y13 | I49: =INDEX(INDIRECT(dms_RPT),dms_FRCP_start_row+12) -> 
B50: 2000-01 | C50: 2001 | D50: PRCP_y14 | E50: =INDEX(INDIRECT(dms_RPT),dms_PRCP_start_row+13) ->  | F50: CRCP_y14 | G50: =INDEX(INDIRECT(dms_RPT),dms_CRCP_start_row+13) ->  | H50: FRCP_y14 | I50: =INDEX(INDIRECT(dms_RPT),dms_FRCP_start_row+13) -> 
B51: 2001-02 | C51: 2002 | D51: PRCP_y15 | E51: =INDEX(INDIRECT(dms_RPT),dms_PRCP_start_row+14) ->  | F51: CRCP_y15 | G51: =INDEX(INDIRECT(dms_RPT),dms_CRCP_start_row+14) ->  | H51: FRCP_y15 | I51: =INDEX(INDIRECT(dms_RPT),dms_FRCP_start_row+14) -> 
B52: 2002-03 | C52: 2003 | D52: PRCP_y16 | E52: =INDEX(INDIRECT(dms_RPT),dms_PRCP_start_row+15) ->  | F52: CRCP_y16 | G52: =INDEX(INDIRECT(dms_RPT),dms_CRCP_start_row+15) ->  | H52: FRCP_y16 | I52: =INDEX(INDIRECT(dms_RPT),dms_FRCP_start_row+15) -> 
B53: 2003-04 | C53: 2004 | D53: PRCP_y17 | E53: =INDEX(INDIRECT(dms_RPT),dms_PRCP_start_row+16) ->  | F53: CRCP_y17 | G53: =INDEX(INDIRECT(dms_RPT),dms_CRCP_start_row+16) ->  | H53: FRCP_y17 | I53: =INDEX(INDIRECT(dms_RPT),dms_FRCP_start_row+16) -> 
B54: 2004-05 | C54: 2005 | D54: PRCP_y18 | E54: =INDEX(INDIRECT(dms_RPT),dms_PRCP_start_row+17) ->  | F54: CRCP_y18 | G54: =INDEX(INDIRECT(dms_RPT),dms_CRCP_start_row+17) ->  | H54: FRCP_y18 | I54: =INDEX(INDIRECT(dms_RPT),dms_FRCP_start_row+17) -> 
B55: 2005-06 | C55: 2006 | D55: PRCP_y19 | E55: =INDEX(INDIRECT(dms_RPT),dms_PRCP_start_row+18) ->  | F55: CRCP_y19 | G55: =INDEX(INDIRECT(dms_RPT),dms_CRCP_start_row+18) ->  | H55: FRCP_y19 | I55: =INDEX(INDIRECT(dms_RPT),dms_FRCP_start_row+18) -> 
B56: 2006-07 | C56: 2007 | D56: PRCP_y20 | E56: =INDEX(INDIRECT(dms_RPT),dms_PRCP_start_row+19) ->  | F56: CRCP_y20 | G56: =INDEX(INDIRECT(dms_RPT),dms_CRCP_start_row+19) ->  | H56: FRCP_y20 | I56: =INDEX(INDIRECT(dms_RPT),dms_FRCP_start_row+19) -> 
B57: 2007-08 | C57: 2008 | D57: PRCP_y21 | E57: =INDEX(INDIRECT(dms_RPT),dms_PRCP_start_row+20) ->  | F57: CRCP_y21 | G57: =INDEX(INDIRECT(dms_RPT),dms_CRCP_start_row+20) ->  | H57: FRCP_y21 | I57: =INDEX(INDIRECT(dms_RPT),dms_FRCP_start_row+20) -> 
B58: 2008-09 | C58: 2009 | D58: PRCP_y22 | E58: =INDEX(INDIRECT(dms_RPT),dms_PRCP_start_row+21) ->  | F58: CRCP_y22 | G58: =INDEX(INDIRECT(dms_RPT),dms_CRCP_start_row+21) ->  | H58: FRCP_y22 | I58: =INDEX(INDIRECT(dms_RPT),dms_FRCP_start_row+21) -> 
B59: 2009-10 | C59: 2010 | D59: PRCP_y23 | E59: =INDEX(INDIRECT(dms_RPT),dms_PRCP_start_row+22) ->  | F59: CRCP_y23 | G59: =INDEX(INDIRECT(dms_RPT),dms_CRCP_start_row+22) ->  | H59: FRCP_y23 | I59: =INDEX(INDIRECT(dms_RPT),dms_FRCP_start_row+22) -> 
B60: 2010-11 | C60: 2011 | D60: PRCP_y24 | E60: =INDEX(INDIRECT(dms_RPT),dms_PRCP_start_row+23) ->  | F60: CRCP_y24 | G60: =INDEX(INDIRECT(dms_RPT),dms_CRCP_start_row+23) ->  | H60: FRCP_y24 | I60: =INDEX(INDIRECT(dms_RPT),dms_FRCP_start_row+23) -> 
B61: 2011-12 | C61: 2012 | D61: PRCP_y25 | E61: =INDEX(INDIRECT(dms_RPT),dms_PRCP_start_row+24) ->  | F61: CRCP_y25 | G61: =INDEX(INDIRECT(dms_RPT),dms_CRCP_start_row+24) ->  | H61: FRCP_y25 | I61: =INDEX(INDIRECT(dms_RPT),dms_FRCP_start_row+24) -> 
B62: 2012-13 | C62: 2013
B63: 2013-14 | C63: 2014
B64: 2014-15 | C64: 2015
B65: 2015-16 | C65: 2016
B66: 2016-17 | C66: 2017
B67: 2017-18 | C67: 2018
B68: 2018-19 | C68: 2019
B69: 2019-20 | C69: 2020
B70: 2020-21 | C70: 2021
B71: 2021-22 | C71: 2022 | E71: CRY - FRY
B72: 2022-23 | C72: 2023 | D72: dms_y1 | E72: =IFERROR(INDEX(INDIRECT(dms_RPT),dms_CRY_start_row),0) -> 0
B73: 2023-24 | C73: 2024 | D73: dms_y2 | E73: =IFERROR(INDEX(INDIRECT(dms_RPT),dms_CRY_start_row+1),0) -> 0
B74: 2024-25 | C74: 2025 | D74: dms_y3 | E74: =IFERROR(INDEX(INDIRECT(dms_RPT),dms_CRY_start_row+2),0) -> 0
B75: 2025-26 | C75: 2026 | D75: dms_y4 | E75: =IFERROR(INDEX(INDIRECT(dms_RPT),dms_CRY_start_row+3),0) -> 0
B76: 2026-27 | C76: 2027 | D76: dms_y5 | E76: =IFERROR(INDEX(INDIRECT(dms_RPT),dms_CRY_start_row+4),0) -> 0
B77: 2027-28 | C77: 2028 | D77: dms_y6 | E77: =IFERROR(INDEX(INDIRECT(dms_RPT),dms_CRY_start_row+5),0) -> 0
B78: 2028-29 | C78: 2029 | D78: dms_y7 | E78: =IFERROR(INDEX(INDIRECT(dms_RPT),dms_CRY_start_row+6),0) -> 0
B79: 2029-30 | C79: 2030 | D79: dms_y8 | E79: =IFERROR(INDEX(INDIRECT(dms_RPT),dms_CRY_start_row+7),0) -> 0
B80: 2030-31 | C80: 2031 | D80: dms_y9 | E80: =IFERROR(INDEX(INDIRECT(dms_RPT),dms_CRY_start_row+8),0) -> 0
B81: 2031-32 | C81: 2032 | D81: dms_y10 | E81: =IFERROR(INDEX(INDIRECT(dms_RPT),dms_CRY_start_row+9),0) -> 0
B82: 2032-33 | C82: 2033 | D82: dms_y11 | E82: =IFERROR(INDEX(INDIRECT(dms_RPT),dms_CRY_start_row+10),0) -> 0
B83: 2033-34 | C83: 2034 | D83: dms_y12 | E83: =IFERROR(INDEX(INDIRECT(dms_RPT),dms_CRY_start_row+11),0) -> 0
B84: 2034-35 | C84: 2035 | D84: dms_y13 | E84: =IFERROR(INDEX(INDIRECT(dms_RPT),dms_CRY_start_row+12),0) -> 0
B85: 2035-36 | C85: 2036 | D85: dms_y14 | E85: =IFERROR(INDEX(INDIRECT(dms_RPT),dms_CRY_start_row+13),0) -> 0
B86: 2036-37 | C86: 2037 | D86: dms_y15 | E86: =IFERROR(INDEX(INDIRECT(dms_RPT),dms_CRY_start_row+14),0) -> 0
B87: 2037-38 | C87: 2038 | D87: dms_y16 | E87: =IFERROR(INDEX(INDIRECT(dms_RPT),dms_CRY_start_row+15),0) -> 0
B88: 2038-39 | C88: 2039 | D88: dms_y17 | E88: =IFERROR(INDEX(INDIRECT(dms_RPT),dms_CRY_start_row+16),0) -> 0
B89: 2039-40 | C89: 2040 | D89: dms_y18 | E89: =IFERROR(INDEX(INDIRECT(dms_RPT),dms_CRY_start_row+17),0) -> 0
B90: 2040-41 | C90: 2041 | D90: dms_y19 | E90: =IFERROR(INDEX(INDIRECT(dms_RPT),dms_CRY_start_row+18),0) -> 0
B91: 2041-42 | C91: 2042 | D91: dms_y20 | E91: =IFERROR(INDEX(INDIRECT(dms_RPT),dms_CRY_start_row+19),0) -> 0
B92: 2042-43 | C92: 2043 | D92: dms_y21 | E92: =IFERROR(INDEX(INDIRECT(dms_RPT),dms_CRY_start_row+20),0) -> 0
B93: 2043-44 | C93: 2044 | D93: dms_y22 | E93: =IFERROR(INDEX(INDIRECT(dms_RPT),dms_CRY_start_row+21),0) -> 0
B94: 2044-45 | C94: 2045 | D94: dms_y23 | E94: =IFERROR(INDEX(INDIRECT(dms_RPT),dms_CRY_start_row+22),0) -> 0
B95: 2045-46 | C95: 2046 | D95: dms_y24 | E95: =IFERROR(INDEX(INDIRECT(dms_RPT),dms_CRY_start_row+23),0) -> 0
B96: 2046-47 | C96: 2047 | D96: dms_y25 | E96: =IFERROR(INDEX(INDIRECT(dms_RPT),dms_CRY_start_row+24),0) -> 0
B97: 2047-48 | C97: 2048 | D97: dms_y26 | E97: =IFERROR(INDEX(INDIRECT(dms_RPT),dms_CRY_start_row+25),0) -> 0
B98: 2048-49 | C98: 2049
B99: 2049-50 | C99: 2050

Sheet AER ETL (hidden)
B1: AER ETL INFORMATION
B3: USES NAMED RANGES FLAG | C3: yes | D3: dms_Defined_Names_Used
B5: IF THIS IS AN ABC RIN - make sure the the named range CRY is applied and the named range dms_dollar_nom_UOM is applied
B6: IF THIS IS A RESET RIN - make sure the named ranges CRY and dms_dollar_nom_UOM are NOT present in the workbook
B7: FOR ABC RINS THAT SPAN MULTIPLE YEARS - make sure MultiYear Flag is set and final year entered as required
B9: Full trading name | C9: =INDEX(dms_TradingNameFull_List,MATCH(dms_TradingName,dms_TradingName_List)) -> Efficiency Benefit Sharing Scheme | E9: dms_TradingNameFull
B10: Trading name | C10: =dms_TradingName -> Jemena Electricity
B11: Unique ID | C11: =INDEX(dms_UID_List,MATCH(dms_TradingName,dms_TradingName_List)) -> 5
A12: Selected here | B12: Model / RIN | C12: Reset | D12: dms_Model
A13: Read from Business & other details | B13: Source | C13: Final decision | D13: dms_Source | E13: =IF(dms_MODEL="Reset", "Make sure you have set Reg Proposal as source","") -> Make sure you have set Reg Proposal as source
B14: Data quality | C14: Consolidated | D14: For DB purposes this is always Consoldiated
B15: Data status | C15: Public | D15: For DB purposes this is always Public
B16: Amendment reason | C16: =dms_Amendment_Text -> 0 | F16: dms_AmendmentReason
B17: Submission date | C17: =dms_Typed_Submission_Date -> dd/mm/yy | D17: dms_SubmissionDate
A19: Redundant | B19: EBSS - First application of scheme in forthcoming period? | C19: No
A20: Pre-populated from lookup table | B20: Data ingestion data quality | C20: Consolidated | D20: dms_DataQuality | E20: Always Consolidated
B21: Sector | C21: =INDEX(dms_Sector_List,MATCH(dms_TradingName,dms_TradingName_List)) -> 0 | D21: dms_Sector | E21: =INDEX(dms_Sector_List,MATCH(dms_TradingName,dms_TradingName_List))
B22: Segment | C22: =INDEX(dms_Segment_List,MATCH(dms_TradingName,dms_TradingName_List)) -> 0 | D22: dms_Segment | E22: =INDEX(dms_Segment_List,MATCH(dms_TradingName,dms_TradingName_List))
B23: Regulatory Year Ending | C23: =IF(dms_MultiYear_Flag=1,LEFT(dms_Specified_FinalYear,2)&RIGHT(dms_Specified_FinalYear,2),dms_RYE_result) ->  | D23: dms_RYE | E23: =IF(dms_MultiYear_Flag=1,LEFT(dms_Specified_FinalYear,2)&RIGHT(dms_Specified_FinalYear,2),dms_RYE_result)
B24: Reporting Period Type | C24: =INDEX(dms_RPT_List,MATCH(dms_TradingName,dms_TradingName_List)) -> 0 | D24: dms_RPT | E24: =INDEX(dms_RPT_List,MATCH(dms_TradingName,dms_TradingName_List))
B25: EB/CA Unit of Measure for Monetary Values | C25: $0s | D25: dms_dollar_nom_UOM | E25: =IF(dms_SingleYearModel="yes","This is set to an historical template (EB, CA or ARR), apply UOM Named Range to cell !","This is not an historical template, make sure UOM Named Range is not applied") ->  | J25: =IFERROR(dms_dollar_nom_UOM, "NR not applied") -> NR not applied
B26: Security Classification | C26: Public | D26: dms_Classification | E26: Always Public
B27: Jurisdiction | C27: =INDEX(dms_JurisdictionList,MATCH(dms_TradingName,dms_TradingName_List)) -> 0 | D27: dms_Jurisdiction | E27: =INDEX(dms_JurisdictionList,MATCH(dms_TradingName,dms_TradingName_List))
A28: Relevant for PTRM, RFMs and Reset RINS | B28: $ REAL REFERENCES
B29: Does the named range CRY exist in this file? | C29: =IFERROR(CRY,"NO") -> 2023-24
B30: CRY-1 (last full calendar year before CRY) | C30: =IFERROR(IF(dms_RPT="calendar",CRY-1,LEFT(CRY,4)),"CRY not present") -> CRY not present | D30: dms_Cal_Year_B4_CRY | E30: '=IF(dms_RPT="financial",VALUE(LEFT(dms_SingleYear_FinalYear_Result,4)),VALUE(LEFT(dms_SingleYear_FinalYear_Result,4)-1))
B31: Dollar $ real month | C31: =INDEX(dms_RPTMonth_List,MATCH(dms_TradingName,dms_TradingName_List)) -> 0 | D31: dms_RPTMonth | E31: =INDEX(dms_RPTMonth_List,MATCH(dms_TradingName,dms_TradingName_List))
B32: Dollar $ real (the last month before the FRCP_y1) | C32: =IF(dms_MODEL="RFM",dms_DollarReal_Prev, IF(dms_SingleYearModel="yes",CONCATENATE(dms_RPTMonth)&" "&VALUE((LEFT(dms_CRY_start_year,2)&RIGHT(dms_CRY_start_year,2))),CONCATENATE(dms_RPTMonth)&" "&dms_DollarReal_year)) ->  | D32: dms_DollarReal | E32: =IF(dms_Model="RFM",dms_DollarReal_Prev, IF(dms_SingleYearModel="yes",CONCATENATE(dms_RPTMonth)&" "&VALUE((LEFT(dms_CRY_start_year,2)&RIGHT(dms_CRY_start_year,2))),CONCATENATE(dms_RPTMonth)&" "&dms_DollarReal_year))
B33: Dollar $ real previous year (PRCP_y5) | C33: =CONCATENATE(dms_RPTMonth)&" "&dms_Previous_DollarReal_year ->  | D33: dms_DollarReal_Prev | E33: =IF(SUM(dms_SingleYear_Model)>0,CONCATENATE(dms_RPTMonth)&" "&VALUE(((LEFT(CRY,2))&RIGHT(CRY,2))-1),CONCATENATE(dms_RPTMonth)&" "&VALUE(((LEFT(dms_CRCP_FirstYear_Result,2)&RIGHT(dms_CRCP_FirstYear_Result,2))))-1)
B34: PTRM/ RFMs
B35: Form of control | C35: =INDEX(dms_FormControl_List,MATCH(dms_TradingName,dms_TradingName_List)) -> 0 | D35: dms_FormControl | E35: =INDEX(dms_FormControl_List,MATCH(dms_TradingName,dms_TradingName_List))
A36: All potential values for Regulatory Years or RYEs as calculated | B36: This block works out the various RYE's for ALL RIN types and MODELS
B37: dms_start_year | C37: =FRCP_y1 -> 2026-27 | D37: =FRCP_y1 | E37: FRCP_y1 from cover sheet
B38: dms_CRY_start_year | C38: =IFERROR(CRY,CRCP_y4) -> 2023-24 | D38: =IFERROR(CRY,CRCP_y4)
B39: dms_CRY_start_row | C39: =IFERROR(MATCH(dms_CRY_start_year,INDIRECT(dms_RPT),0),0) -> 0 | D39: =IFERROR(MATCH(dms_CRY_start_year,INDIRECT(dms_RPT),0),0)
B40: dms_FRCP_start_row | C40: =MATCH(dms_start_year,INDIRECT(dms_RPT),0) ->  | D40: =MATCH(dms_start_year,INDIRECT(dms_RPT),0) | E40: Uses FRCP_y1 as a start reference
B41: dms_CRCP_start_row | C41: =dms_FRCP_start_row-dms_CRCPlength_Num ->  | D41: =dms_FRCP_start_row-dms_CRCPlength_Num | E41: Uses the value in dms_CRCPlength_Num
B42: dms_PRCP_start_row | C42: =dms_FRCP_start_row-dms_CRCPlength_Num-dms_PRCPlength_Num ->  | D42: =dms_FRCP_start_row-dms_CRCPlength_Num-dms_PRCPlength_Num | E42: Uses the value in dms_CRCPlength_Num and dms_PRCPlength_Num
B43: dms_RYE_start_row | C43: =dms_FRCP_start_row+(dms_FRCPlength_Num-1) ->  | D43: =dms_FRCP_start_row+(dms_FRCPlength_Num-1) | E43: Uses the value in dms_FRCPlength_Num-1
B44: FRCP_start_year | C44: =INDEX(INDIRECT(dms_RPT),dms_FRCP_start_row) ->  | D44: =INDEX(INDIRECT(dms_RPT),dms_FRCP_start_row) | E44: Converts the FRCP start row to display the year
B45: CRCP_start_year | C45: =INDEX(INDIRECT(dms_RPT),dms_CRCP_start_row) ->  | D45: =INDEX(INDIRECT(dms_RPT),dms_CRCP_start_row) | E45: Converts the CRCP start row to display the year
B46: PRCP_start_year | C46: =INDEX(INDIRECT(dms_RPT),dms_PRCP_start_row) ->  | D46: =INDEX(INDIRECT(dms_RPT),dms_PRCP_start_row) | E46: Converts the PRCP start row to display the year
B47: FRCP_final_year | C47: =INDEX(INDIRECT(dms_RPT),dms_FRCP_start_row+dms_FRCPlength_Num-1) ->  | D47: =INDEX(INDIRECT(dms_RPT),dms_FRCP_start_row+dms_FRCPlength_Num-1) | E47: Finds the FRCP final year
B48: CRCP_final_year | C48: =INDEX(INDIRECT(dms_RPT),dms_CRCP_start_row+dms_CRCPlength_Num-1) ->  | D48: =INDEX(INDIRECT(dms_RPT),dms_CRCP_start_row+dms_CRCPlength_Num-1) | E48: Finds the CRCP final year
B49: PRCP_final_year | C49: =INDEX(INDIRECT(dms_RPT),dms_PRCP_start_row+dms_FRCPlength_Num-1) ->  | D49: =INDEX(INDIRECT(dms_RPT),dms_PRCP_start_row+dms_FRCPlength_Num-1) | E49: Finds the PRCP final year
B50: dms_Reset_final_year | C50: =INDEX(INDIRECT(dms_RPT),dms_RYE_start_row) ->  | D50: =INDEX(INDIRECT(dms_RPT),dms_RYE_start_row) | E50: For Resets and PTRM/RFMs (same as FRCP_final_year)
B51: dms_SpecifiedYear_final_year | C51: =FRY -> 2029-30 | D51: =FRY | E51: FRY from cover sheet
B52: dms_DollarReal_year | C52: =LEFT(CRCP_final_year,2)&RIGHT(CRCP_final_year,2) ->  | D52: =LEFT(CRCP_final_year,2)&RIGHT(CRCP_final_year,2) | E52: Uses the value in CRCP_final_year
B53: dms_Previous_DollarReal_year | C53: =LEFT(PRCP_final_year,2)&RIGHT(PRCP_final_year,2) ->  | D53: =LEFT(PRCP_final_year,2)&RIGHT(PRCP_final_year,2) | E53: Uses the value in PRCP_final_year
B54: dms_CRY_RYE | C54: =IFERROR(LEFT(CRY,2)&RIGHT(CRY,2),0) -> 2024 | D54: =IFERROR(LEFT(CRY,2)&RIGHT(CRY,2),0) | E54: For ABC single year RINS
B55: dms_Reset_RYE | C55: =IF(dms_Model_Span>1,IF(dms_MODEL="RFM",(LEFT(dms_DollarReal_year,2)&RIGHT(dms_DollarReal_year,2)),(LEFT(dms_Reset_final_year,2)&RIGHT(dms_Reset_final_year,2))),0) ->  | D55: =IF(dms_Model_Span>1,IF(dms_Model="RFM",(LEFT(dms_DollarReal_year,2)&RIGHT(dms_DollarReal_year,2)),(LEFT(dms_Reset_final_year,2)&RIGHT(dms_Reset_final_year,2))),0) | E55: If model span > 1 then uses dms_Reset_RYE otherwise it's a multi year ABC and uses dms_Specified_RYE
B56: dms_Specified_RYE | C56: =IF(dms_MultiYear_ResponseFlag="Yes",(LEFT(dms_Specified_FinalYear,2)&RIGHT(dms_Specified_FinalYear,2)),0) ->  | D56: =IF(dms_MultiYear_ResponseFlag="Yes",(LEFT(dms_Specified_FinalYear,2)&RIGHT(dms_Specified_FinalYear,2)),0) | E56: If multi year ABC - uses dms_Specified_FinalYear
B57: dms_Model_Span | C57: =INDEX(dms_Model_Span_List,MATCH(dms_MODEL,dms_Model_List)) -> 0 | D57: =INDEX(dms_Model_Span_List,MATCH(dms_Model,dms_Model_List)) | E57: A result of 5 is used to signify that it is more than 1 year span
B58: dms_RYE_result | C58: =IF(dms_MultiYear_ResponseFlag="yes",dms_Specified_RYE,(IF(dms_Model_Span>1,dms_Reset_RYE,dms_CRY_RYE))) ->  | D58: =IF(dms_MultiYear_ResponseFlag="yes",dms_Specified_RYE,(IF(dms_Model_Span>1,dms_Reset_RYE,dms_CRY_RYE))) | E58: Nested IF - feeds into dms_RYE
B59: dms_Reset_Span | C59: =IF(dms_Reset_RYE>0,CONCATENATE(FRCP_y1," to ",FRCP_final_year),0) ->  | D59: =IF(dms_Reset_RYE>0,CONCATENATE(FRCP_y1," to ",FRCP_final_year),0) | E59: Reset span of years as text
B60: dms_SpecifiedYear_Span | C60: =IF(dms_Specified_RYE>0,CONCATENATE(CRY," to ",dms_Specified_FinalYear),0) ->  | D60: =IF(dms_Specified_RYE>0,CONCATENATE(CRY," to ",dms_Specified_FinalYear),0) | E60: Multi year ABC span of years as text
B61: dms_Header_Span | C61: =IF(dms_MultiYear_Flag=1,dms_SpecifiedYear_Span,IF(dms_Model_Span>1,dms_y1&" to "&FRCP_final_year,CRY)) ->  | D61: =IF(dms_MultiYear_Flag=1,dms_SpecifiedYear_Span,IF(dms_Model_Span>1,dms_Reset_Span,CRY)) | E61: NESTED IF - for Sheet Headers
B62: ABC RINS THAT SPAN MULTIPLE YEARS
B63: This is a multi year ABC RIN? | C63: No
C64: =IF(dms_MultiYear_ResponseFlag="No",0,1) ->  | D64: dms_MultiYear_Flag | E64: This is set from the answer provided above
C65: =IF(dms_MultiYear_Flag=1,FRY,"not a Multiple year submission") ->  | D65: dms_Specified_FinalYear | E65: The result here is returned to dms_CRCP_FinalYear_Result if response to Q in C73 is "yes" and dms_MultiYear_Flag is set to 1
B66: Start year for 5.2 in Multi year ABC RINS | C66: =IFERROR(IF(dms_MultiYear_Flag=1,FRY,CRY),"not an ABC") -> not an ABC | D66: dms_0502_Inst_Year | E66: =IF(dms_MultiYear_Flag=1,FRY,CRY) | G66: For single year RINS this is CRY - multi year RINS need to start a the end of the span of years (ie. FRY)
B67: WHAT IS THE RYE?
B68: Reg Period Lengths
B69: PRCP length in years | C69: =INDEX(dms_PRCPlength_List,MATCH(dms_TradingName,dms_TradingName_List)) -> 0 | D69: dms_PRCPlength_Num | E69: =INDEX(dms_PRCPlength_List,MATCH(dms_TradingName,dms_TradingName_List))
B70: CRCP length in years | C70: =INDEX(dms_CRCPlength_List,MATCH(dms_TradingName,dms_TradingName_List)) -> 0 | D70: dms_CRCPlength_Num | E70: =INDEX(dms_CRCPlength_List,MATCH(dms_TradingName,dms_TradingName_List))
B71: FRCP length in years | C71: =INDEX(dms_FRCPlength_List,MATCH(dms_TradingName,dms_TradingName_List)) -> 0 | D71: dms_FRCPlength_Num | E71: =INDEX(dms_FRCPlength_List,MATCH(dms_TradingName,dms_TradingName_List))
B72: Single year RIN?
B73: Single Year ABC RIN ? | C73: =IF(dms_MODEL="EB",1,0) -> 0 | D73: dms_EB
C74: =IF(dms_MODEL="CA",1,0) -> 0 | D74: dms_CA | E74: =dms_SingleYear_Model
C75: =IF(dms_MODEL="ARR",1,0) -> 0 | D75: dms_ARR
B76: Is this a single Year ABC RIN? | C76: =IF(SUM(dms_SingleYear_Model)=1,"yes","no") ->  | D76: dms_SingleYearModel | E76: =IF(SUM(dms_SingleYear_Model)=1,"yes","no")
B77: Single Year Final Year Result | C77: =IF(AND(dms_SingleYearModel="yes",dms_MultiYear_Flag=0),CRY,0) ->  | D77: dms_SingleYear_FinalYear_Result | E77: =IFERROR(IF(SUM(dms_SingleYear_Model)<>0,(INDIRECT(dms_SingleYear_FinalYear_Ref)),"not a single year RIN"),"CRY not present")
B78: Multi year RIN?
B80: Multi Year Reset/Model? | C80: =IF(dms_Model_Span>1,"yes","no") -> 
B81: Final year result for Reset/Model | C81: =IF(dms_Model_Span>1,dms_Reset_final_year,0) ->  | D81: dms_MultiYear_FinalYear_Result | E81: dms_CRCP_FinalYear_Result
B83: Multi Year ABC RIN? | C83: =IF(dms_MultiYear_Flag=1,"yes","no") ->  | D83: dms_MultiYear_ABC_RIN
B84: Final year result for ABC multi year | C84: =IF(dms_MultiYear_Flag=1,C51,0) -> 
B86: EB RINS
B87: Calendar Year for table 3.6 data | C87: =IFERROR(IF(dms_Segment="Transmission",dms_Cal_Year_B4_CRY,CRY),"CRY not present") -> CRY not present | D87: dms_0306_Year | E87: =IF(dms_Segment="Transmission",dms_Cal_Year_B4_CRY,CRY)
B88: CA RINS
B89: Find how many rows in tables 6.3 sustained interruptions? | E89: dms_060301_MaxRows only returns a valid value when cover sheet is attached to a CA file
C90: =IF(dms_MODEL<>"CA","not a CA","Is a CA") -> not a CA | E90: =IF(dms_Model<>"CA","not a CA","Is a CA")
B91: dms_060301_Avg_Duration_Sustained_Int_Values present? | C91: =IFERROR(IF(INDEX(dms_060301_Avg_Duration_Sustained_Int_Values,1,1)<>"","yes","no"),"no") -> no | D91: dms_060301_checkvalue | E91: =IFERROR(IF(INDEX(dms_060301_Avg_Duration_Sustained_Int_Values,1,1)<>"","yes","no"),"no")
C92: =IF(AND(dms_MODEL="CA",(dms_060301_checkvalue="no")),"error - NR not present","no errors") ->  | E92: =IF(AND(dms_Model="CA",(dms_060301_checkvalue="no")),"error - NR not present","no errors")
B93: Table 6.3.1 - last row reference | C93: =IFERROR(IF(dms_MODEL="CA",LOOKUP(2,1/(dms_060301_Avg_Duration_Sustained_Int_Values<>""),(ROW(dms_060301_Avg_Duration_Sustained_Int_Values))),"not a CA"),"6.3 not present") -> not a CA | D93: dms_060301_LastRow | E93: =IFERROR(IF(dms_Model="CA",LOOKUP(2,1/(dms_060301_Avg_Duration_Sustained_Int_Values<>""),(ROW(dms_060301_Avg_Duration_Sustained_Int_Values))),"not a CA"),"6.3 not present")
B94: Table 6.3.1 - max number rows | C94: =IFERROR(IF(dms_MODEL="CA",(dms_060301_LastRow-15),"not a CA"),"error") -> not a CA | D94: dms_060301_MaxRows | E94: =IFERROR(IF(dms_Model="CA",(dms_060301_LastRow-15),"not a CA"),"error")
B95: Table 6.6.3 - Public lighting repair - no. business days | C95: =INDEX(dms_663_List,MATCH(dms_TradingName,dms_TradingName_List)) -> 0 | D95: dms_663 | E95: =INDEX(dms_663_List,MATCH(dms_TradingName,dms_TradingName_List))
B96: ARR or RESET RINS
B97: How many rows in tables 6.1 or 6.7? (leap year?) | C97: insert dms_LeapYear NR if required | E97: 'dms_LeapYear is used to determine dms_060701_Max_Rows BUT it is only found on worksheet 6.1 or 6.7 and the date value in the cell is used to determine whether it is a leap year
B98: Is dms_LeapYear named range present? | C98: =IFERROR(IF(dms_LeapYear,"yes"),"no") -> no
B99: Table 6.7.1 - includes a leap year? | C99: =IFERROR(IF(MONTH(DATE(YEAR(dms_LeapYear),2,29))=2,"is a leap year","not a leap year"), "dms_LeapYear not present") -> dms_LeapYear not present | D99: dms_LeapYear_Result | E99: =IFERROR(IF(MONTH(DATE(YEAR(dms_LeapYear),2,29))=2,"is a leap year","not a leap year"),"dms_LeapYear not present")
B100: MaxRows if Reset and leap year | C100: =IF(dms_LeapYear_Result="is a leap year",1827,1826) ->  | D100: dms_060701_Reset_MaxRows | E100: =IF(dms_LeapYear_Result="is a leap year",1827,1826) | H100: number of days present in Reset RIN table
B101: MaxRows if ARR and leap year | C101: =IF(dms_LeapYear_Result="is a leap year",366,365) ->  | D101: dms_060701_ARR_MaxRows | E101: =IF(dms_LeapYear_Result="is a leap year",366,365) | H101: number of days present in ARR RIN table
B102: Table 6.7.1 - Max Rows (leap year/ non leap year) | C102: =IF(dms_MODEL="ARR",dms_060701_ARR_MaxRows,IF(dms_MODEL="Reset",dms_060701_Reset_MaxRows,"not a relevant RIN type")) ->  | D102: dms_060701_MaxRows | E102: =IF(dms_Model="ARR",dms_060701_ARR_MaxRows,IF(dms_Model="Reset",dms_060701_Reset_MaxRows,"not a relevant RIN type"))
B103: How many columns in 6.7? (4 or 5 feeder categories) | C103: =IF(dms_FifthFeeder_flag_NSP="NO","This NSP has only 4 feeder categories","This NSP has 5 feeder categories") -> 
B104: Table 6.7.1 - Last column (# of feeder categories > 4) | C104: =IF(dms_FifthFeeder_flag_NSP="NO",10,12) ->  | D104: dms_060701_MaxCols | E104: =IF(dms_FifthFeeder_flag_NSP="NO",8,10)
B105: Table 6.7.1 - Number of offset rows | C105: =IF(dms_MODEL="ARR",15,9) -> 9 | D105: dms_060701_OffsetRows | E105: =IF(dms_Model="ARR",15,9)
B106: Start date for telephone answering in 6.1 or 6.7? | E106: Using 060101 as naming standard not 060701 for start dates
B107: Table 6.1.1 and 6.7.1 - Start Date as Text | C107: =IF(dms_SingleYearModel="yes",(CONCATENATE(IF(LEN(CRY)=4,"1-Jan-","1-Jul-"),LEFT(CRY,4))),(CONCATENATE(IF(LEN(PRCP_y4)=4,"1-Jan-","1-Jul-"),LEFT(PRCP_y4,4)))) ->  | D107: dms_060101_StartDateTxt | E107: =IF(SUM(dms_SingleYear_Model)>1,(CONCATENATE(IF(LEN(CRY)=4,"1-Jan-","1-Jul-"),LEFT(CRY,4))),(CONCATENATE(IF(LEN(CRCP_y4)=4,"1-Jan-","1-Jul-"),LEFT(CRCP_y4,4))))
B108: Table 6.1.1 and 6.7.1 - Start Date as Date Value | C108: =DATEVALUE(dms_060701_StartDateTxt) ->  | D108: dms_060101_StartDateVal | E108: =DATEVALUE(dms_060701_StartDateTxt)
B109: Does the NSP report MAIFI or MAIFIe | C109: NO | D109: dms_MAIFI_Flag
B110: ARRs
B111: How many rows in table 6.8? | C111: insert dms_060801_StartCell NR if required | E111: dms_060801_StartCell is only found on worksheet 6.8 and is used to determine the starting date for the date range
B112: Is dms_060801_StartCell named range present? | C112: =IFERROR(IF((ROW(dms_060801_StartCell)-1)=1,"yes","yes"),"no") -> no | D112: Must be present for ARRs | E112: =IFERROR(IF((ROW(dms_060801_StartCell)-1)=1,"yes","yes"),"no")
B113: Table 6.8 - Number of offset rows | C113: 12 | D113: dms_0608_OffsetRows | E113: =IFERROR(IF(dms_Model="ARR",(ROW(dms_060801_StartCell)-1),"not an ARR"),"6.8 error")
B114: Table 6.8 - Last row | C114: =IFERROR(IF(dms_060801_StartCell<>"",IF(dms_MODEL="ARR",(LOOKUP(2,1/(dms_060801_01_Values<>""),(ROW(dms_060801_01_Values)))),"not an ARR"),0),"0") -> 0 | D114: dms_0608_LastRow | E114: =IFERROR(IF(dms_060801_StartCell<>"",IF(dms_Model="ARR",(LOOKUP(2,1/(dms_060801_01_Values<>""),(ROW(dms_060801_01_Values)))),"not an ARR"),0),"0")
B115: Table 6.8 - MaxRows | C115: =IFERROR(IF(dms_MODEL="ARR",(MAX(0,dms_0608_LastRow-dms_0608_OffsetRows)),"not an ARR"),"0") -> not an ARR | D115: dms_060801_MaxRows | E115: =IFERROR(IF(dms_Model="ARR",(MAX(0,dms_0608_LastRow-dms_0608_OffsetRows)),"not an ARR"),"0")
B116: TNSP RESET RINS
B117: Table 7.9.4 only appears in TNSPs Reset RIN
B118: Table 7.9.4 - first year | C118: =LEFT(PRCP_y3,4) -> 0 | D118: dms_070904_Start_Year | E118: =LEFT(PRCP_y3,4)
B120: MISC
B121: Distribution Determination Reference | C121: =INDEX(dms_DeterminationRef_List,MATCH(dms_TradingName,dms_TradingName_List)) ->  | D121: dms_DeterminationRef
B122: Public lighting NSP? | C122: =INDEX(dms_Public_Lighting_List,MATCH(dms_TradingName,dms_TradingName_List)) -> 0 | D122: dms_Public_Lighting | E122: =INDEX(dms_Public_Lighting_List,MATCH(dms_TradingName,dms_TradingName_List))
B123: CBD Feeder for this business | C123: =INDEX(dms_CBD_flag,MATCH(dms_TradingName,dms_TradingName_List)) -> 0 | D123: dms_CBD_flag_NSP
B124: Urban Feeder for this business | C124: =INDEX(dms_Urban_flag,MATCH(dms_TradingName,dms_TradingName_List)) -> 0 | D124: dms_Urban_flag_NSP
B125: Short rural Feeder for this business | C125: =INDEX(dms_ShortRural_flag,MATCH(dms_TradingName,dms_TradingName_List)) -> 0 | D125: dms_ShortRural_flag_NSP
B126: Long rural Feeder for this business | C126: =INDEX(dms_LongRural_flag,MATCH(dms_TradingName,dms_TradingName_List)) -> 0 | D126: dms_LongRural_flag_NSP
B127: Fifth Feeder Category (eg. TasNetworks (D)) | C127: =INDEX(dms_FeederType_5_flag,MATCH(dms_TradingName,dms_TradingName_List)) -> 0 | D127: dms_FifthFeeder_flag_NSP | E127: =INDEX(dms_FeederType_5_flag,MATCH(dms_TradingName,dms_TradingName_List))
B129: DISCARD FILES
B130: discard this record? | C130: NO | D130: dms_DISCARD | E130: If record is to be discarded from DB set this flag to YES
B132: SUBSET FILES
B133: Is this Submission File a Subset File | C133: NO | D133: dms_Partial
B136: REGULATORY YEARS FOR MULTI RYE SUBMISSIONS
B137: Multiple RYE flag | C137: NO | D137: dms_Multi_RYE_flag
C138: Manually specify RYE | D138: Named ranges to apply
C139: 2013 | D139: dms_RYE_01
C140: 2014 | D140: dms_RYE_02
C141: 2015 | D141: dms_RYE_03
C142: 2016 | D142: dms_RYE_04
C143: 2017 | D143: dms_RYE_05
C144: 2018 | D144: dms_RYE_06
C145: 2019 | D145: dms_RYE_07
C146: 2020 | D146: dms_RYE_08
C147: 2021 | D147: dms_RYE_09
